[Event "*** SCC Grand Prix: Titled Tuesday Blitz"]
[Site "Chess.com"]
[Date "2020.08.11"]
[Round "8"]
[White "GadimbayliA"]
[Black "Micki-taryan"]
[Result "1/2-1/2"]
[WhiteElo "2879"]
[BlackElo "3043"]
[TimeControl "180+1"]
[EndTime "11:30:38 PDT"]
[Termination "Game drawn by repetition"]

1. e4 {[%clk 0:02:59.3]} 1... e5 {[%clk 0:02:59.5]} 2. Nf3 {[%clk 0:02:59.6]}
2... Nc6 {[%clk 0:03:00]} 3. Nc3 {[%clk 0:03:00.2]} 3... Nf6 {[%clk 0:02:59.4]}
4. d4 {[%clk 0:03:00.7]} 4... exd4 {[%clk 0:02:58.7]} 5. Nxd4 {[%clk 0:03:01.6]}
5... Bb4 {[%clk 0:02:58.1]} 6. Nxc6 {[%clk 0:03:01.7]} 6... bxc6 {[%clk
0:02:58.8]} 7. Bd3 {[%clk 0:03:02.2]} 7... d5 {[%clk 0:02:58.7]} 8. exd5 {[%clk
0:03:03.1]} 8... O-O {[%clk 0:02:58.8]} 9. O-O {[%clk 0:03:03.3]} 9... cxd5
{[%clk 0:02:58.8]} 10. Bg5 {[%clk 0:03:03.1]} 10... c6 {[%clk 0:02:58.1]} 11.
Qf3 {[%clk 0:03:03.5]} 11... h6 {[%clk 0:02:57.6]} 12. Bxf6 {[%clk 0:03:03.5]}
12... Qxf6 {[%clk 0:02:58.5]} 13. Qxf6 {[%clk 0:03:04]} 13... gxf6 {[%clk
0:02:59.4]} 14. Ne2 {[%clk 0:03:04.6]} 14... Rb8 {[%clk 0:02:57.4]} 15. Nd4
{[%clk 0:03:00.3]} 15... Bd7 {[%clk 0:02:49.4]} 16. Nf5 {[%clk 0:02:52.4]} 16...
Bxf5 {[%clk 0:02:38.6]} 17. Bxf5 {[%clk 0:02:53.3]} 17... Ba5 {[%clk 0:02:30.6]}
18. b3 {[%clk 0:02:47.1]} 18... Rbd8 {[%clk 0:02:29.6]} 19. Rad1 {[%clk
0:02:45.3]} 19... Rfe8 {[%clk 0:02:29.4]} 20. g3 {[%clk 0:02:40.9]} 20... Kg7
{[%clk 0:02:27.9]} 21. Kg2 {[%clk 0:02:39.9]} 21... Re5 {[%clk 0:02:27.8]} 22.
Bd3 {[%clk 0:02:40]} 22... Rde8 {[%clk 0:02:27.7]} 23. Ba6 {[%clk 0:02:37.7]}
23... R8e7 {[%clk 0:02:25.3]} 24. f4 {[%clk 0:01:58.7]} 24... Re3 {[%clk
0:02:22.3]} 25. Rf3 {[%clk 0:01:55.3]} 25... Rxf3 {[%clk 0:02:22.5]} 26. Kxf3
{[%clk 0:01:56.2]} 26... Bb6 {[%clk 0:02:23.1]} 27. Kg2 {[%clk 0:01:46.8]} 27...
Ba5 {[%clk 0:02:21.4]} 28. Kf3 {[%clk 0:01:41.5]} 28... Bb6 {[%clk 0:02:02.3]}
29. Kg2 {[%clk 0:01:39.9]} 29... Ba5 {[%clk 0:02:02.5]} 30. Kf3 {[%clk
0:01:39.9]} 1/2-1/2

[Event "*** SCC Grand Prix: Titled Tuesday Blitz"]
[Site "Chess.com"]
[Date "2020.08.11"]
[Round "8"]
[White "laboratorio25"]
[Black "Volodar_Murzin"]
[Result "0-1"]
[WhiteElo "2429"]
[BlackElo "2676"]
[TimeControl "180+1"]
[EndTime "11:30:40 PDT"]
[Termination "Volodar_Murzin won by resignation"]

1. e4 {[%clk 0:03:00.9]} 1... c5 {[%clk 0:02:57.8]} 2. Nf3 {[%clk 0:02:59.4]}
2... d6 {[%clk 0:02:57.4]} 3. d4 {[%clk 0:02:59.6]} 3... cxd4 {[%clk 0:02:58.3]}
4. Nxd4 {[%clk 0:02:59.8]} 4... Nf6 {[%clk 0:02:58.4]} 5. Nc3 {[%clk 0:03:00.1]}
5... a6 {[%clk 0:02:57.7]} 6. Be3 {[%clk 0:02:59.5]} 6... e5 {[%clk 0:02:57.9]}
7. Nb3 {[%clk 0:02:58.3]} 7... Be6 {[%clk 0:02:57.3]} 8. Qd2 {[%clk 0:02:57.8]}
8... Be7 {[%clk 0:02:55.7]} 9. f3 {[%clk 0:02:57.8]} 9... b5 {[%clk 0:02:52.6]}
10. O-O-O {[%clk 0:02:53.2]} 10... Nbd7 {[%clk 0:02:50.3]} 11. g4 {[%clk
0:02:52.6]} 11... O-O {[%clk 0:02:47.9]} 12. g5 {[%clk 0:02:52.7]} 12... Nh5
{[%clk 0:02:47.4]} 13. Kb1 {[%clk 0:02:50.8]} 13... Rc8 {[%clk 0:02:42.1]} 14.
Bd3 {[%clk 0:02:46.4]} 14... Nb6 {[%clk 0:02:32.7]} 15. Qf2 {[%clk 0:02:41.1]}
15... Na4 {[%clk 0:02:22.2]} 16. Nd5 {[%clk 0:02:35.2]} 16... Bxd5 {[%clk
0:02:19.2]} 17. exd5 {[%clk 0:02:36.1]} 17... Bxg5 {[%clk 0:02:19]} 18. Rhg1
{[%clk 0:02:21.2]} 18... Bxe3 {[%clk 0:02:15.9]} 19. Qxe3 {[%clk 0:02:22.1]}
19... Qf6 {[%clk 0:02:15]} 20. Nd2 {[%clk 0:02:17.2]} 20... e4 {[%clk
0:02:09.7]} 21. c3 {[%clk 0:02:07.8]} 21... exd3 {[%clk 0:02:03]} 22. Ne4 {[%clk
0:02:07.4]} 22... Qf4 {[%clk 0:02:02.6]} 23. Qxd3 {[%clk 0:02:01.5]} 23... Nc5
{[%clk 0:01:59.5]} 24. Nxc5 {[%clk 0:01:58.5]} 24... Rxc5 {[%clk 0:02:00.4]} 25.
Rg4 {[%clk 0:01:58.5]} 25... Qf6 {[%clk 0:01:56.5]} 26. f4 {[%clk 0:01:53.9]}
26... g6 {[%clk 0:01:51.5]} 27. f5 {[%clk 0:01:52.8]} 27... Ng7 {[%clk
0:01:49.8]} 28. fxg6 {[%clk 0:01:51.2]} 28... fxg6 {[%clk 0:01:47.5]} 0-1

[Event "*** SCC Grand Prix: Titled Tuesday Blitz"]
[Site "Chess.com"]
[Date "2020.08.11"]
[Round "8"]
[White "coalescenet"]
[Black "GMaka"]
[Result "0-1"]
[WhiteElo "1958"]
[BlackElo "2351"]
[TimeControl "180+1"]
[EndTime "11:31:07 PDT"]
[Termination "GMaka won by resignation"]

1. d4 {[%clk 0:03:00.9]} 1... e6 {[%clk 0:02:56.5]} 2. c4 {[%clk 0:03:01]} 2...
b6 {[%clk 0:02:56.5]} 3. Nf3 {[%clk 0:03:01.2]} 3... Bb7 {[%clk 0:02:56.4]} 4.
Qc2 {[%clk 0:02:52.1]} 4... f5 {[%clk 0:02:56.4]} 5. Nc3 {[%clk 0:02:50.8]} 5...
Nf6 {[%clk 0:02:57.3]} 6. b3 {[%clk 0:02:40.4]} 6... Bb4 {[%clk 0:02:52.9]} 7.
Bd2 {[%clk 0:02:40.5]} 7... O-O {[%clk 0:02:48.5]} 8. a3 {[%clk 0:02:40.5]} 8...
Bxc3 {[%clk 0:02:47.4]} 9. Bxc3 {[%clk 0:02:40.6]} 9... Ne4 {[%clk 0:02:48.3]}
10. g3 {[%clk 0:02:38.5]} 10... Nxc3 {[%clk 0:02:47]} 11. Qxc3 {[%clk
0:02:38.5]} 11... d6 {[%clk 0:02:46.8]} 12. Bg2 {[%clk 0:02:38.2]} 12... Nd7
{[%clk 0:02:47.4]} 13. O-O {[%clk 0:02:35.8]} 13... Be4 {[%clk 0:02:47.3]} 14.
Rfe1 {[%clk 0:02:24]} 14... c6 {[%clk 0:02:46.9]} 15. Nd2 {[%clk 0:02:19.5]}
15... Bxg2 {[%clk 0:02:46.1]} 16. Kxg2 {[%clk 0:02:20.1]} 16... e5 {[%clk
0:02:44.1]} 17. e4 {[%clk 0:02:15.9]} 17... f4 {[%clk 0:02:44]} 18. Nf1 {[%clk
0:02:06.2]} 18... Qf6 {[%clk 0:02:24.2]} 19. Rad1 {[%clk 0:02:04.8]} 19... fxg3
{[%clk 0:02:20.6]} 20. Qxg3 {[%clk 0:02:03.4]} 20... exd4 {[%clk 0:02:20.8]} 21.
Rd2 {[%clk 0:01:39.1]} 21... c5 {[%clk 0:02:19.8]} 22. h4 {[%clk 0:01:31.7]}
22... Ne5 {[%clk 0:02:18.5]} 23. Nh2 {[%clk 0:01:31.6]} 23... Qf4 {[%clk
0:02:13]} 24. Rde2 {[%clk 0:01:17.6]} 24... Ng6 {[%clk 0:02:04.1]} 25. h5 {[%clk
0:01:14.9]} 25... Qxg3+ {[%clk 0:01:55.3]} 26. Kxg3 {[%clk 0:01:12.8]} 26... Nf4
{[%clk 0:01:55.3]} 0-1

[Event "*** SCC Grand Prix: Titled Tuesday Blitz"]
[Site "Chess.com"]
[Date "2020.08.11"]
[Round "8"]
[White "M1711"]
[Black "MNyuyu"]
[Result "1-0"]
[WhiteElo "2468"]
[BlackElo "2341"]
[TimeControl "180+1"]
[EndTime "11:31:11 PDT"]
[Termination "M1711 won by checkmate"]

1. e4 {[%clk 0:03:00.9]} 1... d5 {[%clk 0:02:59.7]} 2. exd5 {[%clk 0:03:00.5]}
2... Qxd5 {[%clk 0:02:59.7]} 3. Nc3 {[%clk 0:03:01.2]} 3... Qd8 {[%clk
0:02:59.8]} 4. d4 {[%clk 0:02:57.1]} 4... c6 {[%clk 0:02:59.7]} 5. Nf3 {[%clk
0:02:53.2]} 5... Bg4 {[%clk 0:02:59.1]} 6. h3 {[%clk 0:02:46.8]} 6... Bh5 {[%clk
0:02:57.7]} 7. g4 {[%clk 0:02:45]} 7... Bg6 {[%clk 0:02:57.2]} 8. h4 {[%clk
0:02:44]} 8... h6 {[%clk 0:02:51.5]} 9. Ne5 {[%clk 0:02:42.9]} 9... Bh7 {[%clk
0:02:50.7]} 10. Qf3 {[%clk 0:02:40.2]} 10... f6 {[%clk 0:02:49.9]} 11. Nc4
{[%clk 0:02:19]} 11... Bxc2 {[%clk 0:02:34.8]} 12. Bd3 {[%clk 0:02:09.8]} 12...
Bxd3 {[%clk 0:02:31.7]} 13. Qxd3 {[%clk 0:02:10.7]} 13... Kf7 {[%clk 0:02:21.9]}
14. h5 {[%clk 0:02:09]} 14... e6 {[%clk 0:02:16.6]} 15. Qg6+ {[%clk 0:02:05]}
15... Ke7 {[%clk 0:02:16.5]} 16. Bf4 {[%clk 0:02:01.1]} 16... Kd7 {[%clk
0:02:09.4]} 17. O-O-O {[%clk 0:01:53.8]} 17... Kc8 {[%clk 0:01:59.4]} 18. Rhe1
{[%clk 0:01:51.7]} 18... Ne7 {[%clk 0:01:54.2]} 19. Qf7 {[%clk 0:01:51.3]} 19...
Nd7 {[%clk 0:01:39.2]} 20. Nd6+ {[%clk 0:01:41.3]} 20... Kc7 {[%clk 0:01:26.8]}
21. Qxe6 {[%clk 0:01:39.8]} 21... Kb6 {[%clk 0:01:20.6]} 22. Qb3+ {[%clk
0:01:39.1]} 22... Ka6 {[%clk 0:01:15.1]} 23. Qxb7+ {[%clk 0:01:37.6]} 23... Ka5
{[%clk 0:01:14.4]} 24. b4# {[%clk 0:01:38.3]} 1-0

[Event "*** SCC Grand Prix: Titled Tuesday Blitz"]
[Site "Chess.com"]
[Date "2020.08.11"]
[Round "8"]
[White "FairChess_on_YouTube"]
[Black "12teen"]
[Result "1-0"]
[WhiteElo "2980"]
[BlackElo "2683"]
[TimeControl "180+1"]
[EndTime "11:31:13 PDT"]
[Termination "FairChess_on_YouTube won by resignation"]

1. Nc3 {[%clk 0:03:00.9]} 1... b6 {[%clk 0:02:58.2]} 2. e4 {[%clk 0:02:57.1]}
2... Bb7 {[%clk 0:02:56.3]} 3. d4 {[%clk 0:02:56.6]} 3... e6 {[%clk 0:02:56.5]}
4. Nf3 {[%clk 0:02:49]} 4... Nf6 {[%clk 0:02:55.1]} 5. e5 {[%clk 0:02:48.3]}
5... Nd5 {[%clk 0:02:55]} 6. Nxd5 {[%clk 0:02:46]} 6... Bxd5 {[%clk 0:02:55.9]}
7. Bd3 {[%clk 0:02:46]} 7... Bb7 {[%clk 0:02:54.7]} 8. Ng5 {[%clk 0:02:43.2]}
8... d6 {[%clk 0:02:36]} 9. O-O {[%clk 0:02:38.9]} 9... dxe5 {[%clk 0:02:29.3]}
10. dxe5 {[%clk 0:02:39.8]} 10... Qd5 {[%clk 0:02:17.7]} 11. Qg4 {[%clk
0:02:38.4]} 11... Nc6 {[%clk 0:02:01.2]} 12. Be4 {[%clk 0:02:34.7]} 12... Qd7
{[%clk 0:01:40.6]} 13. Rd1 {[%clk 0:02:34.1]} 13... Qe7 {[%clk 0:01:06.9]} 14.
Qf3 {[%clk 0:02:32.4]} 14... Nxe5 {[%clk 0:00:57.9]} 15. Bxb7 {[%clk 0:02:33.3]}
15... Nxf3+ {[%clk 0:00:57.1]} 16. Bxf3 {[%clk 0:02:34.2]} 16... Qc5 {[%clk
0:00:39.6]} 17. Be3 {[%clk 0:02:34]} 17... Qc4 {[%clk 0:00:22.2]} 18. b3 {[%clk
0:02:33.3]} 18... Qc3 {[%clk 0:00:20.7]} 19. Bxa8 {[%clk 0:02:32.5]} 19... Bd6
{[%clk 0:00:18.7]} 20. Ne4 {[%clk 0:02:31.8]} 20... Qxc2 {[%clk 0:00:18.1]} 21.
Rd2 {[%clk 0:02:30.4]} 21... Qxd2 {[%clk 0:00:09.5]} 1-0

[Event "*** SCC Grand Prix: Titled Tuesday Blitz"]
[Site "Chess.com"]
[Date "2020.08.11"]
[Round "8"]
[White "MPGM"]
[Black "Fortitudine"]
[Result "1-0"]
[WhiteElo "2451"]
[BlackElo "2259"]
[TimeControl "180+1"]
[EndTime "11:31:27 PDT"]
[Termination "MPGM won by resignation"]

1. d4 {[%clk 0:03:00.9]} 1... Nf6 {[%clk 0:02:59.7]} 2. c4 {[%clk 0:02:59.6]}
2... c5 {[%clk 0:02:59.9]} 3. Nf3 {[%clk 0:02:56.2]} 3... cxd4 {[%clk
0:02:59.9]} 4. Nxd4 {[%clk 0:02:56]} 4... e5 {[%clk 0:03:00.3]} 5. Nb5 {[%clk
0:02:53.6]} 5... d5 {[%clk 0:02:58.5]} 6. cxd5 {[%clk 0:02:54.5]} 6... Bc5
{[%clk 0:02:58.1]} 7. e3 {[%clk 0:02:53.4]} 7... O-O {[%clk 0:02:54.5]} 8. Be2
{[%clk 0:02:52.4]} 8... e4 {[%clk 0:02:53.9]} 9. N5c3 {[%clk 0:02:52.2]} 9...
Bf5 {[%clk 0:02:43.3]} 10. b3 {[%clk 0:02:49.8]} 10... Nbd7 {[%clk 0:02:39.4]}
11. Bb2 {[%clk 0:02:49.8]} 11... Qe7 {[%clk 0:02:32.8]} 12. O-O {[%clk
0:02:48.2]} 12... Ne5 {[%clk 0:02:24.8]} 13. Nd2 {[%clk 0:02:44]} 13... a6
{[%clk 0:02:15.9]} 14. Nc4 {[%clk 0:02:36.4]} 14... Nxc4 {[%clk 0:02:10.3]} 15.
bxc4 {[%clk 0:02:35]} 15... Bd6 {[%clk 0:02:06.6]} 16. h3 {[%clk 0:02:31.1]}
16... Qe5 {[%clk 0:02:03.2]} 17. f4 {[%clk 0:02:16.7]} 17... exf3 {[%clk
0:02:03.2]} 18. Rxf3 {[%clk 0:02:14.2]} 18... Qh2+ {[%clk 0:02:00.4]} 19. Kf2
{[%clk 0:02:12.3]} 19... Ne4+ {[%clk 0:01:46.5]} 20. Nxe4 {[%clk 0:02:12]} 20...
Bxe4 {[%clk 0:01:47]} 21. Qd4 {[%clk 0:02:11.7]} 1-0

[Event "*** SCC Grand Prix: Titled Tuesday Blitz"]
[Site "Chess.com"]
[Date "2020.08.11"]
[Round "8"]
[White "GMKrikor"]
[Black "Isajevsky_Anton"]
[Result "1-0"]
[WhiteElo "2738"]
[BlackElo "2610"]
[TimeControl "180+1"]
[EndTime "11:31:32 PDT"]
[Termination "GMKrikor won by resignation"]

1. e4 {[%clk 0:03:00.9]} 1... c5 {[%clk 0:02:59.7]} 2. Nf3 {[%clk 0:03:01.1]}
2... d6 {[%clk 0:02:59.9]} 3. d4 {[%clk 0:03:00.6]} 3... cxd4 {[%clk 0:03:00.8]}
4. Nxd4 {[%clk 0:02:59.9]} 4... Nf6 {[%clk 0:03:00.5]} 5. Nc3 {[%clk 0:03:00]}
5... a6 {[%clk 0:03:00.4]} 6. Be3 {[%clk 0:02:59.5]} 6... e5 {[%clk 0:03:00.1]}
7. Nb3 {[%clk 0:02:58.7]} 7... Be6 {[%clk 0:02:59.6]} 8. f3 {[%clk 0:02:58.1]}
8... Nbd7 {[%clk 0:02:59]} 9. g4 {[%clk 0:02:57.2]} 9... Be7 {[%clk 0:02:42.4]}
10. Qd2 {[%clk 0:02:55.6]} 10... O-O {[%clk 0:02:41.4]} 11. g5 {[%clk
0:02:50.1]} 11... Nh5 {[%clk 0:02:40.7]} 12. O-O-O {[%clk 0:02:50.1]} 12... f5
{[%clk 0:02:35.6]} 13. h4 {[%clk 0:02:19.4]} 13... Rc8 {[%clk 0:02:09]} 14. Rg1
{[%clk 0:02:01.6]} 14... f4 {[%clk 0:01:15.1]} 15. Bf2 {[%clk 0:01:58.4]} 15...
Re8 {[%clk 0:01:15.4]} 16. Nd5 {[%clk 0:01:51.7]} 16... Bf8 {[%clk 0:01:15.5]}
17. Kb1 {[%clk 0:01:52.1]} 17... g6 {[%clk 0:00:57.2]} 18. Na5 {[%clk
0:01:33.8]} 18... b6 {[%clk 0:00:51.9]} 19. Nb7 {[%clk 0:01:31.8]} 1-0

[Event "*** SCC Grand Prix: Titled Tuesday Blitz"]
[Site "Chess.com"]
[Date "2020.08.11"]
[Round "8"]
[White "hansen"]
[Black "Shota_Azaladze"]
[Result "1-0"]
[WhiteElo "2923"]
[BlackElo "2680"]
[TimeControl "180+1"]
[EndTime "11:31:34 PDT"]
[Termination "hansen won by resignation"]

1. e4 {[%clk 0:03:00.9]} 1... g6 {[%clk 0:02:55.6]} 2. d4 {[%clk 0:03:01.1]}
2... Bg7 {[%clk 0:02:56.1]} 3. Nf3 {[%clk 0:03:01.7]} 3... c6 {[%clk 0:02:56.1]}
4. c3 {[%clk 0:03:01.9]} 4... d6 {[%clk 0:02:56.1]} 5. Nbd2 {[%clk 0:03:01.4]}
5... e5 {[%clk 0:02:55.4]} 6. Bd3 {[%clk 0:03:01.9]} 6... Nd7 {[%clk 0:02:54.8]}
7. O-O {[%clk 0:03:02.4]} 7... Ngf6 {[%clk 0:02:54.9]} 8. a4 {[%clk 0:03:02.8]}
8... O-O {[%clk 0:02:54.4]} 9. Re1 {[%clk 0:03:03.4]} 9... Re8 {[%clk
0:02:54.5]} 10. Nc4 {[%clk 0:03:00.8]} 10... Qc7 {[%clk 0:02:53.4]} 11. dxe5
{[%clk 0:03:00.6]} 11... dxe5 {[%clk 0:02:52.6]} 12. b4 {[%clk 0:02:54.8]} 12...
b6 {[%clk 0:02:45.1]} 13. Bc2 {[%clk 0:02:51.7]} 13... Bf8 {[%clk 0:02:43.5]}
14. Bb3 {[%clk 0:02:49.5]} 14... a6 {[%clk 0:02:33.3]} 15. Ng5 {[%clk
0:02:48.8]} 15... b5 {[%clk 0:01:25.8]} 16. Na3 {[%clk 0:02:48.2]} 16... Re7
{[%clk 0:01:21.5]} 17. axb5 {[%clk 0:02:48.1]} 17... cxb5 {[%clk 0:01:20.6]} 18.
Nxb5 {[%clk 0:02:46.7]} 18... Qc6 {[%clk 0:01:20.8]} 19. Nd6 {[%clk 0:02:44.1]}
19... Qxc3 {[%clk 0:01:19.4]} 20. Bd2 {[%clk 0:02:37.9]} 20... Qd4 {[%clk
0:01:17.5]} 21. Ngxf7 {[%clk 0:02:36.1]} 21... Nb6 {[%clk 0:01:03.9]} 22. Nxc8
{[%clk 0:02:10.5]} 22... Nxc8 {[%clk 0:01:02.9]} 23. Nxe5+ {[%clk 0:02:09.5]}
23... Kh8 {[%clk 0:01:01.6]} 24. Nc6 {[%clk 0:02:09.8]} 24... Qb6 {[%clk
0:00:56.2]} 25. Nxe7 {[%clk 0:02:08.7]} 25... Nxe7 {[%clk 0:00:57]} 26. Qf3
{[%clk 0:01:54.9]} 26... Bg7 {[%clk 0:00:56.3]} 27. e5 {[%clk 0:01:53.8]} 27...
Nfd5 {[%clk 0:00:51.5]} 28. Bxd5 {[%clk 0:01:53.5]} 28... Rf8 {[%clk 0:00:51.3]}
29. Be3 {[%clk 0:01:52.3]} 1-0

[Event "*** SCC Grand Prix: Titled Tuesday Blitz"]
[Site "Chess.com"]
[Date "2020.08.11"]
[Round "8"]
[White "MarceloPlaya"]
[Black "Mikhail_Golubev"]
[Result "0-1"]
[WhiteElo "2337"]
[BlackElo "2574"]
[TimeControl "180+1"]
[EndTime "11:31:41 PDT"]
[Termination "Mikhail_Golubev won by resignation"]

1. e4 {[%clk 0:03:00.9]} 1... c5 {[%clk 0:02:59.3]} 2. Nf3 {[%clk 0:02:59.4]}
2... d6 {[%clk 0:02:58.7]} 3. d4 {[%clk 0:02:59.3]} 3... Nf6 {[%clk 0:02:56.5]}
4. Nc3 {[%clk 0:02:58]} 4... cxd4 {[%clk 0:02:56.2]} 5. Nxd4 {[%clk 0:02:57]}
5... g6 {[%clk 0:02:56.1]} 6. Be3 {[%clk 0:02:56.4]} 6... Bg7 {[%clk 0:02:55.9]}
7. Bc4 {[%clk 0:02:56]} 7... O-O {[%clk 0:02:53.7]} 8. f3 {[%clk 0:02:51.1]}
8... Nc6 {[%clk 0:02:52.4]} 9. Qd2 {[%clk 0:02:44.3]} 9... Bd7 {[%clk
0:02:50.4]} 10. O-O-O {[%clk 0:02:43.5]} 10... Rb8 {[%clk 0:02:49]} 11. h4
{[%clk 0:02:40.4]} 11... b5 {[%clk 0:02:44.8]} 12. Ndxb5 {[%clk 0:02:35.5]}
12... Ne5 {[%clk 0:02:33.5]} 13. Be2 {[%clk 0:02:20.3]} 13... Qa5 {[%clk
0:02:31]} 14. Nd4 {[%clk 0:01:28.5]} 14... Rfc8 {[%clk 0:02:27.9]} 15. Nb3
{[%clk 0:01:25.7]} 15... Rxb3 {[%clk 0:02:26.1]} 16. axb3 {[%clk 0:01:21.5]}
16... Qa1+ {[%clk 0:02:12.6]} 17. Nb1 {[%clk 0:01:20.3]} 17... Nxe4 {[%clk
0:01:52.8]} 18. fxe4 {[%clk 0:01:09.3]} 18... Nc4 {[%clk 0:01:37.3]} 19. Qd4
{[%clk 0:00:43.8]} 19... Qxb2+ {[%clk 0:01:33.6]} 0-1

[Event "*** SCC Grand Prix: Titled Tuesday Blitz"]
[Site "Chess.com"]
[Date "2020.08.11"]
[Round "8"]
[White "Mikhal867"]
[Black "barbara25"]
[Result "0-1"]
[WhiteElo "2343"]
[BlackElo "2210"]
[TimeControl "180+1"]
[EndTime "11:31:41 PDT"]
[Termination "barbara25 won by resignation"]

1. e4 {[%clk 0:03:00.9]} 1... c5 {[%clk 0:02:59.2]} 2. Nf3 {[%clk 0:02:57.9]}
2... d6 {[%clk 0:02:59.2]} 3. d4 {[%clk 0:02:57.4]} 3... cxd4 {[%clk 0:02:58.5]}
4. Nxd4 {[%clk 0:02:56.9]} 4... Nf6 {[%clk 0:02:57]} 5. Nc3 {[%clk 0:02:55.8]}
5... a6 {[%clk 0:02:57.1]} 6. h3 {[%clk 0:02:53.1]} 6... e5 {[%clk 0:02:56.9]}
7. Nde2 {[%clk 0:02:51.2]} 7... Be7 {[%clk 0:02:54.1]} 8. g4 {[%clk 0:02:50.5]}
8... h6 {[%clk 0:02:54]} 9. Bg2 {[%clk 0:02:49.2]} 9... Be6 {[%clk 0:02:52.7]}
10. Be3 {[%clk 0:02:48.1]} 10... Nbd7 {[%clk 0:02:49.3]} 11. O-O {[%clk
0:02:47.2]} 11... Rc8 {[%clk 0:02:49.4]} 12. f4 {[%clk 0:02:41.7]} 12... exf4
{[%clk 0:02:47.6]} 13. Nxf4 {[%clk 0:02:40.9]} 13... Ne5 {[%clk 0:02:47.6]} 14.
Nfd5 {[%clk 0:02:23.5]} 14... Nxd5 {[%clk 0:02:41.9]} 15. exd5 {[%clk
0:02:22.1]} 15... Bd7 {[%clk 0:02:41.9]} 16. Bd4 {[%clk 0:02:21.7]} 16... O-O
{[%clk 0:02:39.8]} 17. Bxe5 {[%clk 0:02:16.8]} 17... dxe5 {[%clk 0:02:39.7]} 18.
d6 {[%clk 0:02:16.9]} 18... Bg5 {[%clk 0:02:39.3]} 19. Bxb7 {[%clk 0:02:15.8]}
19... Qb6+ {[%clk 0:02:38.5]} 20. Kh2 {[%clk 0:02:13.9]} 20... Qxb7 {[%clk
0:02:38.5]} 21. Qd5 {[%clk 0:02:09.6]} 21... Qxd5 {[%clk 0:02:32.8]} 22. Nxd5
{[%clk 0:02:09.1]} 22... Rxc2+ {[%clk 0:02:31.7]} 23. Kg3 {[%clk 0:02:08.9]}
23... Bc6 {[%clk 0:02:28.8]} 24. Ne7+ {[%clk 0:02:05.4]} 24... Bxe7 {[%clk
0:02:28.6]} 25. dxe7 {[%clk 0:02:04.9]} 25... Re8 {[%clk 0:02:28.5]} 26. Rac1
{[%clk 0:02:03.5]} 26... Rg2+ {[%clk 0:02:24.5]} 27. Kh4 {[%clk 0:02:02.6]}
27... Be4 {[%clk 0:02:23.5]} 28. Rfe1 {[%clk 0:01:56.3]} 28... Bg6 {[%clk
0:02:18.8]} 29. Rxe5 {[%clk 0:01:54.1]} 29... Rxb2 {[%clk 0:02:18.5]} 30. a4
{[%clk 0:01:51.2]} 30... Rb7 {[%clk 0:02:18]} 31. Rce1 {[%clk 0:01:45.9]} 31...
f6 {[%clk 0:02:17.8]} 32. Re6 {[%clk 0:01:45.5]} 32... Rb3 {[%clk 0:02:14.4]}
33. Rxa6 {[%clk 0:01:41.9]} 33... Bf7 {[%clk 0:02:13.7]} 34. g5 {[%clk
0:01:30.6]} 34... hxg5+ {[%clk 0:02:11.9]} 35. Kg4 {[%clk 0:01:30.4]} 35... Kh7
{[%clk 0:02:05.7]} 36. Rd6 {[%clk 0:01:27.7]} 36... Kg6 {[%clk 0:02:04.8]} 37.
Rd8 {[%clk 0:01:25.3]} 37... Rb4+ {[%clk 0:02:02.3]} 38. Kg3 {[%clk 0:01:25.1]}
38... Rxa4 {[%clk 0:02:01.2]} 39. Rxe8 {[%clk 0:01:22.6]} 39... Bxe8 {[%clk
0:02:00.5]} 40. Rd1 {[%clk 0:01:21.6]} 40... Kf7 {[%clk 0:02:00.5]} 41. Re1
{[%clk 0:01:21.5]} 41... Ra7 {[%clk 0:02:00.4]} 42. Rc1 {[%clk 0:01:19.9]} 42...
Rxe7 {[%clk 0:02:00.2]} 43. Rc8 {[%clk 0:01:18.8]} 43... Kg6 {[%clk 0:01:58.8]}
44. Rd8 {[%clk 0:01:18.2]} 44... f5 {[%clk 0:01:58.6]} 45. Rd6+ {[%clk 0:01:18]}
45... Kh5 {[%clk 0:01:58.3]} 0-1

[Event "*** SCC Grand Prix: Titled Tuesday Blitz"]
[Site "Chess.com"]
[Date "2020.08.11"]
[Round "8"]
[White "GMHess"]
[Black "IANOV0007"]
[Result "0-1"]
[WhiteElo "2781"]
[BlackElo "2492"]
[TimeControl "180+1"]
[EndTime "11:31:56 PDT"]
[Termination "IANOV0007 won by resignation"]

1. d4 {[%clk 0:03:00.9]} 1... d6 {[%clk 0:02:59.5]} 2. e4 {[%clk 0:02:56.8]}
2... Nf6 {[%clk 0:02:58.8]} 3. Nc3 {[%clk 0:02:56.9]} 3... c6 {[%clk 0:02:58.8]}
4. f4 {[%clk 0:02:55.4]} 4... Qb6 {[%clk 0:02:57.8]} 5. Nf3 {[%clk 0:02:52.8]}
5... Bg4 {[%clk 0:02:57.3]} 6. Be2 {[%clk 0:02:52.5]} 6... Bxf3 {[%clk
0:02:57.1]} 7. Bxf3 {[%clk 0:02:52.1]} 7... e5 {[%clk 0:02:57.2]} 8. fxe5 {[%clk
0:02:35.1]} 8... dxe5 {[%clk 0:02:56]} 9. dxe5 {[%clk 0:02:36]} 9... Nfd7 {[%clk
0:02:55.1]} 10. e6 {[%clk 0:02:36.6]} 10... fxe6 {[%clk 0:02:54.8]} 11. Bg4
{[%clk 0:02:23.1]} 11... Bc5 {[%clk 0:02:53.7]} 12. Bxe6 {[%clk 0:02:13.6]}
12... Bf2+ {[%clk 0:02:52.2]} 13. Ke2 {[%clk 0:02:11.3]} 13... Rf8 {[%clk
0:02:51.9]} 14. Rf1 {[%clk 0:01:56.4]} 14... Qc5 {[%clk 0:02:51.8]} 15. Bf5
{[%clk 0:01:49.5]} 15... Bd4 {[%clk 0:02:40.3]} 16. Qd2 {[%clk 0:00:26.6]} 16...
g6 {[%clk 0:02:30.4]} 17. Bxd7+ {[%clk 0:00:18.6]} 17... Nxd7 {[%clk 0:02:29.1]}
18. Rxf8+ {[%clk 0:00:19.5]} 18... Nxf8 {[%clk 0:02:28.7]} 19. Qg5 {[%clk
0:00:12.9]} 19... Qc4+ {[%clk 0:02:21.2]} 20. Kf3 {[%clk 0:00:13.1]} 20... Bxc3
{[%clk 0:02:17]} 21. bxc3 {[%clk 0:00:11]} 21... Qxc3+ {[%clk 0:02:16.9]} 22.
Kg4 {[%clk 0:00:06.7]} 22... Qxa1 {[%clk 0:02:13.6]} 23. Ba3 {[%clk 0:00:07]}
23... Qd1+ {[%clk 0:02:06.7]} 24. Kh4 {[%clk 0:00:02.1]} 24... Qh5+ {[%clk
0:02:04.7]} 25. Qxh5 {[%clk 0:00:02.2]} 0-1